fUST/lending_fUST_20240802
["ID","MTS","AMOUNT","RATE_DAILY","PERIOD"]
[333846670,1722549061401,-500.0,0.0001863,2]
[333846671,1722549061413,-653.49,0.0001863,2]
[333846672,1722549061424,-500.0,0.0001863,2]
[333846673,1722549061435,-584.33,0.0001863,2]
[333846674,1722549061444,-854.39,0.0001863,2]
[333846675,1722549061454,-212.783287,0.00018652,2]
[333846676,1722549061464,-344.450934,0.00018652,2]
[333846677,1722549061474,-2025.98704589,0.00018757,2]
[333846678,1722549061484,-940.43707948,0.0001881,2]
[333846679,1722549061494,-183.61219,0.00018877,2]
[333846680,1722549061504,-212.783287,0.00018877,2]
[333846681,1722549061515,-344.450934,0.00018877,2]
[333846682,1722549061525,-151.0,0.00018893,2]
[333846683,1722549061538,-153.0,0.00018903,2]
[333846684,1722549061548,-1238.420534,0.00018904,2]
[333846685,1722549061558,-1238.420534,0.00018904,2]
[333846686,1722549061569,-649.99,0.00018904,2]
[333846687,1722549061581,-151.0,0.00018904,2]
[333846688,1722549061592,-238.149517,0.00018904,2]
[333846689,1722549061602,-176.997316,0.00018904,2]
[333846690,1722549061613,-238.149517,0.00018904,2]
[333846691,1722549061623,-525.476618,0.00018904,2]
[333846692,1722549061633,-525.476618,0.00018904,2]
[333846693,1722549061643,-196.3,0.00018904,2]
[333846694,1722549061655,-196.3,0.00018904,2]
[333846695,1722549061666,-151.0,0.00018904,2]
[333846696,1722549061676,-500.0,0.00018904,2]
[333846697,1722549061688,-500.0,0.00018904,2]
[333846698,1722549061698,-671.01,0.00018904,2]
[333846699,1722549061710,-603.08,0.00018904,2]
[333846700,1722549061721,-817.47,0.00018904,2]
[333846701,1722549061732,-1752.91,0.00018904,2]
[333846702,1722549061745,-2291.88,0.00018904,2]
[333846703,1722549061756,-693.62,0.00018904,2]
[333846704,1722549061768,-1466.75,0.00018904,2]
[333846705,1722549061778,-622.4,0.00018904,2]
[333846706,1722549061790,-500.0,0.00018904,2]
[333846707,1722549061800,-500.42,0.00018904,2]
[333846708,1722549061812,-596.44,0.00018904,2]
[333846709,1722549061824,-1558.84,0.00018904,2]
[333846710,1722549061834,-602.54,0.00018904,2]
[333846711,1722549061845,-1192.36,0.00018904,2]
[333846712,1722549061856,-655.75,0.00018904,2]
[333846713,1722549061867,-500.0,0.00018904,2]
[333846714,1722549061879,-1224.704367,0.00018904,2]
[333846715,1722549061889,-862.921231,0.00018904,2]
[333846716,1722549061899,-1224.70436457,0.00018904,2]
[333846717,1722549061910,-862.921229,0.00018904,2]
[333846718,1722549061922,-653.49,0.00018904,2]
[333846719,1722549061934,-500.0,0.00018904,2]
[333846720,1722549061943,-216.491155,0.00018904,2]
[333846721,1722549061954,-151.0,0.00018904,2]
[333846722,1722549061965,-584.33,0.00018904,2]
[333846723,1722549061976,-216.491163,0.00018904,2]
[333846724,1722549061987,-854.39,0.00018904,2]
[333846725,1722549061996,-156.10666615,0.00019,2]
[333846726,1722549062007,-932.85034205,0.00019,2]
[333846727,1722549062017,-150.0,0.00019,2]
[333846728,1722549062027,-425.725446,0.00019,2]
[333846729,1722549062040,-425.72545,0.00019,2]
[333846730,1722549062051,-903.925327,0.00019,2]
[333846731,1722549062061,-903.925324,0.00019,2]
[333846732,1722549062071,-1538.188163,0.00019,2]
[333846733,1722549062081,-1538.188162,0.00019,2]
[333846734,1722549062091,-167.635472,0.00019,2]
[333846735,1722549062102,-167.63547,0.00019,2]
[333846736,1722549062111,-924.513049,0.00019,2]
[333846737,1722549062122,-924.513051,0.00019,2]
[333846738,1722549062135,-530.127984,0.00019,2]
[333846739,1722549062147,-1322.330686,0.00019,2]
[333846740,1722549062158,-1322.330676,0.00019,2]
[333846741,1722549062168,-530.127977,0.00019,2]
[333846742,1722549062177,-151.0,0.00019,2]
[333846743,1722549062187,-1000.0,0.00019,2]
[333846744,1722549062198,-3946.44257658,0.00019,2]
[333846745,1722549062208,-10000.0,0.00019,2]
[333846746,1722549062221,-10000.0,0.00019,2]
[333846747,1722549062232,-17077.97797349,0.00019,2]
[333846748,1722549062243,-250.0,0.00019041,2]
[333846749,1722549062253,-620.00000092,0.00019061,2]
[333846750,1722549062264,-587.2779889,0.00019063,2]
[333846751,1722549062275,-186.17040585,0.000191,2]
[333846752,1722549062286,-218.5,0.00019133,2]
[333846753,1722549062296,-500.0,0.00019178,2]
[333846754,1722549062307,-500.0,0.00019178,2]
[333846755,1722549062319,-500.0,0.00019178,2]
[333846756,1722549062330,-500.0,0.00019178,2]
[333846757,1722549062339,-500.0,0.00019178,2]
[333846758,1722549062350,-500.0,0.00019178,2]
[333846759,1722549062360,-500.0,0.00019178,2]
[333846760,1722549062369,-500.0,0.00019178,2]
[333846761,1722549062436,-500.0,0.00019178,2]
[333846762,1722549062451,-500.0,0.00019178,2]
[333846763,1722549062460,-500.0,0.00019178,2]
[333846764,1722549062471,-500.0,0.00019178,2]
[333846765,1722549062481,-500.0,0.00019178,2]
[333846766,1722549062490,-500.0,0.00019178,2]
[333846767,1722549062502,-500.0,0.00019178,2]
[333846768,1722549062513,-576.03560009,0.00019178,2]
[333846769,1722549062523,-649.99,0.00019178,2]
[333846770,1722549062535,-309.758375,0.00019178,2]
[333846771,1722549062546,-560.98,0.00019178,2]
[333846772,1722549062555,-560.98,0.00019178,2]
[333846773,1722549062564,-560.98,0.00019178,2]
[333846774,1722549062574,-560.98,0.00019178,2]
[333846775,1722549062583,-560.98,0.00019178,2]
[333846776,1722549062592,-560.98,0.00019178,2]
[333846777,1722549062602,-560.98,0.00019178,2]
[333846778,1722549062614,-560.98,0.00019178,2]
[333846779,1722549062625,-560.98,0.00019178,2]
[333846780,1722549062635,-560.98,0.00019178,2]
[333846781,1722549062648,-560.98,0.00019178,2]
[333846782,1722549062661,-560.98,0.00019178,2]
[333846783,1722549062671,-560.98,0.00019178,2]
[333846784,1722549062682,-560.98,0.00019178,2]
[333846785,1722549062692,-560.98,0.00019178,2]
[333846786,1722549062702,-560.98,0.00019178,2]
[333846787,1722549062712,-560.98,0.00019178,2]
[333846788,1722549062722,-560.98,0.00019178,2]
[333846789,1722549062731,-560.98,0.00019178,2]
[333846790,1722549062741,-560.98,0.00019178,2]
[333846791,1722549062752,-560.98,0.00019178,2]
[333846792,1722549062762,-500.0,0.00019178,2]
[333846793,1722549062775,-1576.942477,0.00019178,2]
[333846794,1722549062785,-1576.942478,0.00019178,2]
[333846795,1722549062795,-264.015589,0.00019178,2]
[333846796,1722549062806,-264.01558,0.00019178,2]
[333846797,1722549062817,-671.01,0.00019178,2]
[333846798,1722549062827,-603.08,0.00019178,2]
[333846799,1722549062838,-817.47,0.00019178,2]
[333846800,1722549062848,-200.0,0.00019178,7]
[333846801,1722549062858,-200.0,0.00019178,7]
[333846802,1722549062868,-200.0,0.00019178,7]
[333846803,1722549062878,-200.0,0.00019178,7]
[333846804,1722549062888,-200.0,0.00019178,7]
[333846805,1722549062898,-200.0,0.00019178,7]
[333846806,1722549062908,-200.0,0.00019178,7]
[333846807,1722549062919,-200.0,0.00019178,7]
[333846808,1722549062930,-1752.91,0.00019178,2]
[333846809,1722549062950,-200.0,0.00019178,7]
[333846810,1722549062967,-200.0,0.00019178,7]
[333846811,1722549062989,-2291.88,0.00019178,2]
[333846812,1722549063010,-693.62,0.00019178,2]
[333846813,1722549063025,-1466.75,0.00019178,2]
[333846814,1722549063044,-622.4,0.00019178,2]
[333846815,1722549063065,-500.0,0.00019178,2]
[333846816,1722549063085,-500.42,0.00019178,2]
[333846817,1722549063105,-596.44,0.00019178,2]
[333846818,1722549063124,-1558.84,0.00019178,2]
[333846819,1722549063142,-602.54,0.00019178,2]
[333846820,1722549063162,-1192.36,0.00019178,2]
[333846821,1722549063179,-655.75,0.00019178,2]
[333846822,1722549063197,-500.0,0.00019178,2]
[333846823,1722549063214,-653.49,0.00019178,2]
[333846824,1722549063241,-500.0,0.00019178,2]
[333846825,1722549063265,-584.33,0.00019178,2]
[333846826,1722549063289,-854.39,0.00019178,2]
[333846827,1722549063309,-381.876398,0.00019178,2]
[333846828,1722549063328,-442.0132643,0.00019178,4]
[333846829,1722549063347,-800.0,0.00019392,2]
[333846830,1722549063363,-649.99,0.00019452,2]
[333846831,1722549063381,-560.98,0.00019452,2]
[333846832,1722549063398,-221.005252,0.00019452,2]
[333846833,1722549063414,-500.0,0.00019452,2]
[333846834,1722549063431,-221.005252,0.00019452,2]
[333846835,1722549063446,-151.0,0.00019452,2]
[333846836,1722549063460,-671.01,0.00019452,2]
[333846837,1722549063475,-603.08,0.00019452,2]
[333846838,1722549063490,-817.47,0.00019452,2]
[333846839,1722549063505,-1752.91,0.00019452,2]
[333846840,1722549063522,-2291.88,0.00019452,2]
[333846841,1722549063544,-693.62,0.00019452,2]
[333846842,1722549063559,-1466.75,0.00019452,2]
[333846843,1722549063577,-622.4,0.00019452,2]
[333846844,1722549063593,-550.28449154,0.00019452,2]
[333846845,1722549063609,-500.42,0.00019452,2]
[333846846,1722549063629,-596.44,0.00019452,2]
[333846847,1722549063645,-1558.84,0.00019452,2]
[333846848,1722549063659,-602.54,0.00019452,2]
[333846849,1722549063676,-1192.36,0.00019452,2]
[333846850,1722549063694,-655.75,0.00019452,2]
[333846851,1722549063710,-500.0,0.00019452,2]
[333846852,1722549063720,-653.49,0.00019452,2]
[333846853,1722549063730,-500.0,0.00019452,2]
[333846854,1722549063741,-584.33,0.00019452,2]
[333846855,1722549063752,-854.39,0.00019452,2]
[333846856,1722549063761,-214.0,0.000195,10]
[333846857,1722549063888,-1000.0,0.000195,2]
[333846858,1722549063908,-167.602961,0.00019513,2]
[333846859,1722549063918,-153.01601231,0.000196,2]
[333846860,1722549063928,-151.0,0.00019715,2]
[333846861,1722549063938,-649.99,0.00019726,2]
[333846862,1722549063948,-151.0,0.00019726,2]
[333846863,1722549063958,-196.3,0.00019726,2]
[333846864,1722549063968,-196.3,0.00019726,2]
[333846865,1722549063978,-151.0,0.00019726,2]
[333846866,1722549063989,-560.98,0.00019726,2]
[333846867,1722549063998,-500.0,0.00019726,2]
[333846868,1722549064008,-671.01,0.00019726,2]
[333846869,1722549064019,-603.08,0.00019726,2]
[333846870,1722549064029,-817.47,0.00019726,2]
[333846871,1722549064039,-1752.91,0.00019726,2]
[333846872,1722549064050,-2291.88,0.00019726,2]
[333846873,1722549064060,-693.62,0.00019726,2]
[333846874,1722549064071,-1466.75,0.00019726,2]
[333846875,1722549064080,-622.4,0.00019726,2]
[333846876,1722549064092,-500.42,0.00019726,2]
[333846877,1722549064102,-596.44,0.00019726,2]
[333846878,1722549064113,-1558.84,0.00019726,2]
[333846879,1722549064123,-602.54,0.00019726,2]
[333846880,1722549064134,-1192.36,0.00019726,2]
[333846881,1722549064144,-655.75,0.00019726,2]
[333846882,1722549064154,-500.0,0.00019726,2]
[333846883,1722549064164,-653.49,0.00019726,2]
[333846884,1722549064174,-425.43977551,0.00019726,2]
[333846885,1722549064184,-584.33,0.00019726,2]
[333846886,1722549064194,-854.39,0.00019726,2]
[333846887,1722549064204,-153.0,0.00019772,2]
[333846888,1722549064214,-4177.87715634,0.00019783,2]
[333846889,1722549064225,-218.5,0.00019807,2]
[333846890,1722549064234,-238.149517,0.00019885,2]
[333846891,1722549064245,-238.149511,0.00019885,2]
[333846892,1722549064257,-525.476618,0.00019885,2]
[333846893,1722549064268,-525.476616,0.00019885,2]
[333846894,1722549064278,-21051.11518117,0.0002,2]
[333846895,1722549064289,-360.11922589,0.0002,2]
[333846896,1722549064300,-157.31883318,0.0002,2]
[333846897,1722549064309,-154.68290005,0.0002,2]
[333846898,1722549064320,-2338.76045622,0.0002,2]
[333846899,1722549064332,-435.0,0.0002,2]
[333846900,1722549064343,-1016.03898228,0.0002,2]
[333846901,1722549064353,-266.51303205,0.0002,2]
[333846902,1722549064363,-361.84094333,0.0002,2]
[333846903,1722549064374,-154.69833824,0.0002,2]
[333846904,1722549064384,-182.75,0.0002,2]
[333846905,1722549064393,-158.90173137,0.0002,2]
[333846906,1722549064402,-53058.14255573,0.0002,2]
[333846907,1722549064412,-1854.38375894,0.0002,2]
[333846908,1722549064422,-4281.77429452,0.0002,2]
[333846909,1722549064432,-75525.46296924,0.0002,2]
[333846910,1722549064442,-174.26885437,0.0002,2]
[333846911,1722549064453,-4000.0,0.0002,3]
[333846912,1722549064463,-4000.0,0.0002,3]
[333846913,1722549064473,-4000.0,0.0002,3]
[333846914,1722549064484,-4500.0,0.0002,3]
[333846915,1722549064495,-522.0022969,0.0002,2]
[333846916,1722549064506,-12900.0,0.0002,2]
[333846917,1722549064516,-85018.78583406,0.0002,2]
[333846918,1722549064526,-23248.89184474,0.0002,2]
[333846919,1722549064540,-4973.47777416,0.0002,2]
[333846920,1722549064551,-16467.20222966,0.0002,2]
[333846921,1722549064562,-100000.0,0.0002,7]
[333846922,1722549064572,-294.0,0.0002,2]
[333846923,1722549064583,-1238.420534,0.0002,2]
[333846924,1722549064593,-1238.420544,0.0002,2]
[333846925,1722549064604,-650.00765721,0.0002,2]
[333846926,1722549064616,-561.15452283,0.0002,2]
[333846927,1722549064627,-221.005252,0.0002,2]
[333846928,1722549064637,-206.0103928,0.0002,2]
[333846929,1722549064647,-221.005256,0.0002,2]
[333846930,1722549064658,-932.0,0.0002,2]
[333846931,1722549064668,-151.28821919,0.0002,2]
[333846932,1722549064678,-151.0,0.0002,2]
[333846933,1722549064687,-150.0,0.0002,2]
[333846934,1722549064696,-671.03468512,0.0002,2]
[333846935,1722549064705,-150.0,0.0002,2]
[333846936,1722549064715,-603.13704735,0.0002,2]
[333846937,1722549064727,-817.68189804,0.0002,2]
[333846938,1722549064737,-1753.07790863,0.0002,2]
[333846939,1722549064748,-2291.89830564,0.0002,2]
[333846940,1722549064758,-693.62761035,0.0002,2]
[333846941,1722549064769,-1466.84787513,0.0002,2]
[333846942,1722549064779,-622.54274653,0.0002,2]
[333846943,1722549064789,-500.57146854,0.0002,2]
[333846944,1722549064799,-596.65802755,0.0002,2]
[333846945,1722549064809,-1558.98789269,0.0002,2]
[333846946,1722549064819,-602.54088058,0.0002,2]
[333846947,1722549064829,-1192.57599315,0.0002,2]
[333846948,1722549064839,-655.7716256,0.0002,2]
[333846949,1722549064849,-1000.0,0.0002,2]
[333846950,1722549064860,-339.79003669,0.0002,2]
[333846951,1722549064871,-3945.0,0.0002,2]
[333846952,1722549064882,-653.70776533,0.0002,2]
[333846953,1722549064891,-10000.0,0.0002,2]
[333846954,1722549064902,-10000.0,0.0002,2]
[333846955,1722549064911,-17076.0,0.0002,2]
[333846956,1722549064921,-584.40379507,0.0002,2]
[333846957,1722549064930,-854.53278848,0.0002,2]
[333846958,1722549064940,-620.00000005,0.00020014,2]
[333846959,1722549064951,-1564.19485627,0.00020139,2]
[333846960,1722549064960,-395.48221394,0.000203,2]
[333846961,1722549064970,-872.80686763,0.00020317,2]
[333846962,1722549064979,-218.5,0.00020481,2]
[333846963,1722549064989,-1551.497103,0.00020548,2]
[333846964,1722549064999,-5370.92160721,0.00020551,15]
[333846965,1722549065009,-4245.34210921,0.0002066,7]
[333846966,1722549065019,-705.555264,0.00020707,2]
[333846967,1722549065029,-150.0,0.00020729,2]
[333846968,1722549065039,-506.0,0.00020729,2]
[333846969,1722549065049,-1410.0,0.00020729,2]
[333846970,1722549065059,-160.0,0.00020971,3]
[333846971,1722549065069,-258.0028627,0.00021,2]
[333846972,1722549065079,-232.56061323,0.00021,2]
[333846973,1722549065089,-10126.63780926,0.00021,2]
[333846974,1722549065099,-150.0,0.00021,2]
[333846975,1722549065109,-620.0,0.00021014,2]
[333846976,1722549065118,-1069.52323997,0.00021063,2]
[333846977,1722549065240,-956.46380592,0.00021063,2]
[333846978,1722549065250,-161.502689,0.00021065,2]
[333846979,1722549065260,-218.5,0.00021155,2]
[333846980,1722549065271,-503.26707886,0.000212,2]
[333846981,1722549065281,-160.0,0.00021316,4]
[333846982,1722549065290,-306.0,0.00021369,2]
[333846983,1722549065300,-396.9114696,0.00021369,2]
[333846984,1722549065311,-1000.0,0.00021503,2]
[333846985,1722549065321,-153.01601231,0.000216,2]
[333846986,1722549065331,-160.0,0.00021662,5]
[333846987,1722549065341,-306.0,0.00021723,2]
[333846988,1722549065351,-218.5,0.00021829,2]
[333846989,1722549065362,-1000.0,0.00021917,5]
[333846990,1722549065371,-1000.0,0.00021917,5]
[333846991,1722549065381,-1000.0,0.00021917,5]
[333846992,1722549065390,-1000.0,0.00021917,5]
[333846993,1722549065400,-770.18173276,0.00021917,5]
[333846994,1722549065410,-160.0,0.00021918,2]
[333846995,1722549065422,-174.32602738,0.00021918,2]
[333846996,1722549065432,-160.0,0.00021999,2]
[333846997,1722549065442,-49362.48330865,0.00022,14]
[333846998,1722549065452,-40261.62809031,0.00022,14]
[333846999,1722549065467,-6486.2,0.00022,14]
[333847054,1722550238476,-16232.4506701,0.0001237,2]
[333847056,1722550238485,-176.115506,0.00012496,2]
[333847058,1722550238495,-176.115506,0.00012821,2]
[333847060,1722550238504,-159.222812,0.00012986,2]
[333847062,1722550238513,-176.115506,0.00013147,2]
[333847064,1722550238523,-717.77121816,0.00013597,2]
[333847065,1722550238532,-2088.93857817,0.00013597,2]
[333847066,1722550238542,-251.79526793,0.00013597,2]
[333847067,1722550238552,-717.77121816,0.00013666,2]
[333847068,1722550238562,-1579.57,0.00013687,2]
[333847069,1722550238571,-1579.57,0.00013687,2]
[333847070,1722550238580,-223268.163105,0.00013688,2]
[333847071,1722550238590,-1579.57,0.00013697,2]
[333847072,1722550238600,-1579.57,0.00013697,2]
[333847073,1722550238610,-1579.57,0.00013697,2]
[333847074,1722550238619,-1579.57,0.00013697,2]
[333847075,1722550238628,-1579.57,0.00013697,2]
[333847076,1722550238638,-1579.57,0.00013697,2]
[333847077,1722550238648,-2547.10325068,0.00013698,5]
[333847078,1722550238657,-500.0,0.00013698,2]
[333847079,1722550238667,-500.0,0.00013698,2]
[333847080,1722550238676,-500.0,0.00013698,2]
[333847081,1722550238688,-500.0,0.00013698,2]
[333847082,1722550238697,-504.4296012,0.00013698,2]
[333847083,1722550238706,-500.0,0.00013698,2]
[333847084,1722550238716,-500.0,0.00013698,2]
[333847085,1722550238725,-500.0,0.00013698,2]
[333847086,1722550238735,-500.0,0.00013698,2]
[333847087,1722550238744,-500.0,0.00013698,2]
[333847088,1722550238754,-500.0,0.00013698,2]
[333847089,1722550238763,-500.0,0.00013698,2]
[333847090,1722550238772,-500.0,0.00013698,2]
[333847091,1722550238782,-500.0,0.00013698,2]
[333847092,1722550238791,-536.81620935,0.00013698,2]
[333847093,1722550238801,-500.0,0.00013698,2]
[333847094,1722550238810,-500.0,0.00013698,2]
[333847095,1722550238819,-500.0,0.00013698,2]
[333847096,1722550238829,-500.0,0.00013698,2]
[333847097,1722550238838,-500.0,0.00013698,2]
[333847098,1722550238847,-500.0,0.00013698,2]
[333847099,1722550238857,-500.0,0.00013698,2]
[333847100,1722550238866,-502.49066998,0.00013698,2]
[333847101,1722550238875,-500.0,0.00013698,2]
[333847102,1722550238885,-500.0,0.00013698,2]
[333847103,1722550238895,-500.0,0.00013698,2]
[333847104,1722550238907,-500.0,0.00013698,2]
[333847105,1722550238917,-500.0,0.00013698,2]
[333847106,1722550238926,-541.77194434,0.00013698,2]
[333847107,1722550238939,-526.07954708,0.00013698,2]
[333847108,1722550238948,-500.0,0.00013698,2]
[333847109,1722550238958,-500.0,0.00013698,2]
[333847110,1722550238967,-500.0,0.00013698,2]
[333847111,1722550238977,-500.0,0.00013698,2]
[333847112,1722550238986,-500.0,0.00013698,2]
[333847113,1722550238996,-500.0,0.00013698,2]
[333847114,1722550239007,-501.70497388,0.00013698,2]
[333847115,1722550239016,-500.0,0.00013698,2]
[333847116,1722550239025,-500.0,0.00013698,2]
[333847117,1722550239036,-500.0,0.00013698,2]
[333847118,1722550239046,-500.0,0.00013698,2]
[333847119,1722550239056,-500.0,0.00013698,2]
[333847120,1722550239065,-503.62001656,0.00013698,2]
[333847121,1722550239075,-500.0,0.00013698,2]
[333847122,1722550239084,-500.0,0.00013698,2]
[333847123,1722550239093,-444.67572387,0.00013698,2]
[333847124,1722550239103,-500.0,0.00013698,2]
[333847125,1722550239112,-339.27393977,0.00013698,2]
[333847126,1722550239122,-500.0,0.00013698,2]
[333847127,1722550239131,-477.2409671,0.00013698,2]
[333847128,1722550239141,-500.0,0.00013698,2]
[333847129,1722550239150,-500.0,0.00013698,2]
[333847130,1722550239160,-500.0,0.00013698,2]
[333847131,1722550239169,-500.0,0.00013698,2]
[333847132,1722550239178,-500.0,0.00013698,2]
[333847133,1722550239188,-514.19117062,0.00013698,2]
[333847134,1722550239198,-500.0,0.00013698,2]
[333847135,1722550239207,-500.0,0.00013698,2]
[333847136,1722550239216,-339.13444035,0.00013698,2]
[333847137,1722550239226,-500.0,0.00013698,2]
[333847138,1722550239235,-213.8810996,0.00013698,2]
[333847139,1722550239244,-203.26950381,0.00013698,2]
[333847140,1722550239254,-500.0,0.00013698,2]
[333847141,1722550239263,-500.0,0.00013698,2]
[333847142,1722550239272,-526.18290349,0.00013698,2]
[333847143,1722550239282,-591.95531405,0.00013698,2]
[333847144,1722550239291,-500.0,0.00013698,2]
[333847145,1722550239301,-500.0,0.00013698,2]
[333847146,1722550239310,-500.0,0.00013698,2]
[333847147,1722550239319,-500.0,0.00013698,2]
[333847148,1722550239328,-500.0,0.00013698,2]
[333847149,1722550239338,-500.0,0.00013698,2]
[333847150,1722550239347,-500.0,0.00013698,2]
[333847151,1722550239356,-500.0,0.00013698,2]
[333847152,1722550239366,-500.0,0.00013698,2]
[333847153,1722550239375,-500.0,0.00013698,2]
[333847154,1722550239384,-500.0,0.00013698,2]
[333847155,1722550239394,-507.50062194,0.00013698,2]
[333847156,1722550239403,-500.0,0.00013698,2]
[333847157,1722550239412,-500.0,0.00013698,2]
[333847158,1722550239421,-512.51529783,0.00013698,2]
[333847159,1722550239430,-500.0,0.00013698,2]
[333847160,1722550239441,-518.91663393,0.00013698,2]
[333847161,1722550239451,-500.0,0.00013698,2]
[333847162,1722550239461,-500.0,0.00013698,2]
[333847163,1722550239470,-500.0,0.00013698,2]
[333847164,1722550239479,-500.0,0.00013698,2]
[333847165,1722550239488,-500.48679161,0.00013698,2]
[333847166,1722550239498,-500.0,0.00013698,2]
[333847167,1722550239509,-500.0,0.00013698,2]
[333847168,1722550239519,-500.0,0.00013698,2]
[333847169,1722550239529,-500.0,0.00013698,2]
[333847170,1722550239540,-500.0,0.00013698,2]
[333847171,1722550239550,-500.0,0.00013698,2]
[333847172,1722550239560,-500.0,0.00013698,2]
[333847173,1722550239569,-500.0,0.00013698,2]
[333847174,1722550239579,-500.0,0.00013698,2]
[333847175,1722550239588,-500.0,0.00013698,2]
[333847176,1722550239598,-501.59879493,0.00013698,2]
[333847177,1722550239607,-500.0,0.00013698,2]
[333847178,1722550239617,-150.66779444,0.00013698,2]
[333847179,1722550239626,-500.0,0.00013698,2]
[333847180,1722550239635,-500.0,0.00013698,2]
[333847181,1722550239645,-500.0,0.00013698,2]
[333847182,1722550239654,-500.0,0.00013698,2]
[333847183,1722550239663,-500.0,0.00013698,2]
[333847184,1722550239672,-512.93426813,0.00013698,2]
[333847185,1722550239682,-500.0,0.00013698,2]
[333847186,1722550239693,-500.0,0.00013698,2]
[333847187,1722550239702,-500.0,0.00013698,2]
[333847188,1722550239712,-500.0,0.00013698,2]
[333847189,1722550239721,-500.0,0.00013698,2]
[333847190,1722550239730,-500.0,0.00013698,2]
[333847191,1722550239739,-506.28422072,0.00013698,2]
[333847192,1722550239749,-500.0,0.00013698,2]
[333847193,1722550239759,-500.0,0.00013698,2]
[333847194,1722550239768,-500.0,0.00013698,2]
[333847195,1722550239777,-500.0,0.00013698,2]
[333847196,1722550239787,-500.0,0.00013698,2]
[333847197,1722550239796,-500.0,0.00013698,2]
[333847198,1722550239805,-500.0,0.00013698,2]
[333847199,1722550239816,-583.17618753,0.00013698,2]
[333847200,1722550239825,-500.0,0.00013698,2]
[333847201,1722550239834,-500.0,0.00013698,2]
[333847202,1722550239843,-500.0,0.00013698,2]
[333847203,1722550239853,-500.0,0.00013698,2]
[333847204,1722550239862,-615.73239655,0.00013698,2]
[333847205,1722550239871,-500.0,0.00013698,2]
[333847206,1722550239880,-500.0,0.00013698,2]
[333847207,1722550239890,-502.51666468,0.00013698,2]
[333847208,1722550239905,-500.0,0.00013698,2]
[333847209,1722550239915,-500.0,0.00013698,2]
[333847210,1722550239925,-500.0,0.00013698,2]
[333847211,1722550239935,-504.14708175,0.00013698,2]
[333847212,1722550239947,-500.0,0.00013698,2]
[333847213,1722550239956,-523.22272385,0.00013698,2]
[333847214,1722550239967,-500.0,0.00013698,2]
[333847215,1722550239981,-500.0,0.00013698,2]
[333847216,1722550239990,-500.0,0.00013698,2]
[333847217,1722550240000,-500.0,0.00013698,2]
[333847218,1722550240009,-500.0,0.00013698,2]
[333847219,1722550240019,-424.68068432,0.00013698,2]
[333847220,1722550240028,-500.0,0.00013698,2]
[333847221,1722550240039,-500.0,0.00013698,2]
[333847222,1722550240049,-500.0,0.00013698,2]
[333847223,1722550240059,-579.64285278,0.00013698,2]
[333847224,1722550240068,-500.0,0.00013698,2]
[333847225,1722550240078,-500.0,0.00013698,2]
[333847226,1722550240087,-500.0,0.00013698,2]
[333847227,1722550240097,-500.0,0.00013698,2]
[333847228,1722550240107,-500.0,0.00013698,2]